[Event "Bremer Silvester Open 2019"]
[Site "Bremen"]
[Date "2019.12.27"]
[Round "2.4"]
[White "Hoerstmann, Martin"]
[Black "Ditmas, Hugh"]
[Result "1-0"]
[ECO "A14"]
[WhiteElo "2208"]
[BlackElo "1982"]
[Annotator "NA"]
[PlyCount "79"]
[EventDate "2019.12.27"]
[EventType "swiss"]
[EventCountry "GER"]
[SourceTitle "playchess.com"]
[Source "ChessBase"]
[SourceQuality "1"]
[TimeControl "40/5400+30:1800+30"]

1. Nf3 {[%emt 0:08:12]} Nf6 {[%emt 0:00:00]} 2. g3 {[%emt 0:00:14]} e6 {[%emt 0:02:21]} 3. Bg2 {[%emt 0:00:08]} d5 {[%emt 0:00:19]} 4. O-O {[%emt 0:00:17]} Be7 {[%emt 0:00:51]} 5. c4 {[%emt 0:00:47]} O-O {[%emt 0:00:55]} 6. b3 {[%emt 0:00:23]} d4 {[%emt 0:00:55]} 7. e3 {[%emt 0:05:40]} c5 {[%emt 0:00:25]} 8. exd4 {[%emt 0:05:19]} cxd4 {[%emt 0:00:31]} 9. Bb2 {[%emt 0:00:47]} Nc6 {[%emt 0:00:12]} 10. Re1 {[%emt 0:00:11]} Re8 {[%emt 0:00:29]} 11. d3 {[%emt 0:00:21]} Bc5 {[%emt 0:13:08]} 12. Ne5 {[%emt 0:04:44]} Nxe5 {[%emt 0:00:16]} 13. Rxe5 {[%emt 0:00:06]} Qd6 {[%emt 0:05:25]} 14. f4 {[%emt 0:13:04]} Nd7 {[%emt 0:07:31]} 15. Re1 {[%emt 0:04:10]} Nf6 {[%emt 0:27:40]} 16. a3 {[%emt 0:13:20]} a5 {[%emt 0:03:54]} 17. Nd2 {[%emt 0:00:18]} Rb8 {[%emt 0:01:25]} 18. Qe2 {[%emt 0:13:58]} Bd7 {[%emt 0:11:29]} 19. Qe5 {[%emt 0:04:22]} Qb6 {[%emt 0:03:27]} 20. h3 {[%emt 0:01:20]} Bc6 {[%emt 0:02:23]} 21. Rab1 {[%emt 0:02:02]} Bxg2 {[%emt 0:00:44]} 22. Kxg2 {[%emt 0:00:08]} Qc6+ {[%emt 0:06:27]} 23. Nf3 {[%emt 0:01:05]} Red8 {[%emt 0:02:47]} 24. Qe2 {[%emt 0:07:12]} b5 {[%emt 0:02:07]} 25. Qd2 {[%emt 0:05:51]} bxc4 {[%emt 0:01:22]} 26. bxc4 {[%emt 0:00:05]} Rb3 {[%emt 0:01:47]} 27. Ba1 {[%emt 0:03:15]} a4 {[%emt 0:00:37]} 28. Rxb3 {[%emt 0:02:34]} axb3 {[%emt 0:00:06]} 29. Bb2 {[%emt 0:00:03]} Ra8 {[%emt 0:01:56]} 30. Ra1 {[%emt 0:00:19]} Nd7 {[%emt 0:00:45]} 31. Qd1 {[%emt 0:01:49]} Qb6 {[%emt 0:00:13]} 32. Qg1 {[%emt 0:00:27]} Qd6 {[%emt 0:01:43]} 33. Bxd4 {[%emt 0:01:49]} Bxa3 {[%emt 0:01:41]} 34. Bb2 {[%emt 0:01:01]} Qa6 {[%emt 0:00:34]} 35. Rxa3 {[%emt 0:00:12]} Qxa3 {[%emt 0:00:11]} 36. Bxa3 {[%emt 0:00:05]} Rxa3 {[%emt 0:00:06]} 37. Ne5 {[%emt 0:01:12]} Ra2+ {[%emt 0:00:58]} 38. Kf3 {[%emt 0:00:08]} Nxe5+ {[%emt 0:00:44]} 39. fxe5 {[%emt 0:00:06]} b2 {[%emt 0:00:30]} 40. Qb1 {[%emt 0:01:03]} 1-0

[Event "Bremer Silvester Open 2019"]
[Site "Bremen"]
[Date "2019.12.27"]
[Round "2.5"]
[White "Meyer, Thorsten"]
[Black "Brinkmann, Fabian"]
[Result "0-1"]
[ECO "B33"]
[WhiteElo "2295"]
[BlackElo "2148"]
[Annotator "NA"]
[PlyCount "79"]
[EventDate "2019.12.27"]
[EventType "swiss"]
[EventCountry "GER"]
[SourceTitle "playchess.com"]
[Source "ChessBase"]
[SourceQuality "1"]
[TimeControl "40/5400+30:1800+30"]

1. e4 {[%emt 0:03:55]} c5 {[%emt 0:00:00]} 2. Nf3 {[%emt 0:00:10]} Nc6 {[%emt 0:00:00]} 3. d4 {[%emt 0:00:13]} cxd4 {[%emt 0:00:00]} 4. Nxd4 {[%emt 0:00:10]} Nf6 {[%emt 0:00:03]} 5. Nc3 {[%emt 0:03:10]} e5 {[%emt 0:00:06]} 6. Ndb5 {[%emt 0:03:00]} d6 {[%emt 0:00:13]} 7. Bg5 {[%emt 0:03:57]} a6 {[%emt 0:00:12]} 8. Na3 {[%emt 0:03:08]} b5 {[%emt 0:00:12]} 9. Bxf6 {[%emt 0:03:33]} gxf6 {[%emt 0:00:08]} 10. Nd5 {[%emt 0:00:27]} Bg7 {[%emt 0:02:54]} 11. Bd3 {[%emt 0:06:43]} Be6 {[%emt 0:02:15]} 12. c3 {[%emt 0:04:56]} f5 {[%emt 0:01:44]} 13. O-O {[%emt 0:10:47]} O-O {[%emt 0:02:52]} 14. Nc2 {[%emt 0:06:33]} Ra7 {[%emt 0:17:50]} 15. a4 {[%emt 0:03:30]} fxe4 {[%emt 0:14:33]} 16. Bxe4 {[%emt 0:01:21]} f5 {[%emt 0:00:57]} 17. Nf6+ {[%emt 0:01:40]} Bxf6 {[%emt 0:02:44]} 18. Bxc6 {[%emt 0:00:45]} bxa4 {[%emt 0:00:48]} 19. Bd5 {[%emt 0:08:43]} Qd7 {[%emt 0:03:57]} 20. Bxe6+ {[%emt 0:07:37]} Qxe6 {[%emt 0:00:09]} 21. Rxa4 {[%emt 0:00:21]} d5 {[%emt 0:01:00]} 22. Nb4 {[%emt 0:03:31]} Rd8 {[%emt 0:03:56]} 23. Qe2 {[%emt 0:02:39]} a5 {[%emt 0:04:24]} 24. Nd3 {[%emt 0:02:49]} Qb6 {[%emt 0:03:53]} 25. Rfa1 {[%emt 0:04:25]} e4 {[%emt 0:07:28]} 26. Nf4 {[%emt 0:01:23]} Be5 {[%emt 0:00:52]} 27. Nd3 {[%emt 0:04:54]} Bc7 {[%emt 0:00:25]} 28. Nb4 {[%emt 0:00:27]} Rb7 {[%emt 0:03:11]} 29. Rxa5 {[%emt 0:00:42]} Qh6 {[%emt 0:01:17]} 30. g3 {[%emt 0:00:18]} Bxa5 {[%emt 0:00:31]} 31. Rxa5 {[%emt 0:00:07]} Qe6 {[%emt 0:08:47]} 32. Qd2 {[%emt 0:00:43]} Rbd7 {[%emt 0:02:07]} 33. Nc2 {[%emt 0:01:38]} Rf8 {[%emt 0:03:05]} 34. Nd4 {[%emt 0:01:05]} Qb6 {[%emt 0:01:30]} 35. Rb5 {[%emt 0:00:30]} Qa6 {[%emt 0:00:50]} 36. Qf4 {[%emt 0:01:00]} Qd6 {[%emt 0:02:26]} 37. Qd2 {[%emt 0:03:22]} f4 {[%emt 0:00:33]} 38. Ne2 {[%emt 0:00:48]} f3 {[%emt 0:00:59]} 39. Nf4 {[%emt 0:01:35]} Qa6 {[%emt 0:10:39]} 40. Ne2 {[%emt 0:03:25]} 0-1

[Event "Bremer Silvester Open 2019"]
[Site "Bremen"]
[Date "2019.12.27"]
[Round "2.6"]
[White "Wachinger, David"]
[Black "Lorenzen, Bjoern"]
[Result "0-1"]
[ECO "B38"]
[WhiteElo "2105"]
[BlackElo "1946"]
[Annotator "ChessBase"]
[PlyCount "192"]
[EventDate "2019.12.27"]
[EventType "swiss"]
[EventCountry "GER"]
[SourceTitle "playchess.com"]
[Source "ChessBase"]
[SourceQuality "1"]
[TimeControl "40/5400+30:1800+30"]

1. d4 {[%emt 0:00:00]} Nf6 {[%emt 0:00:00]} 2. c4 {[%emt 0:00:00]} g6 {[%emt 0:00:00]} 3. Nc3 {[%emt 0:00:00]} Bg7 {[%emt 0:00:00]} 4. e4 {[%emt 0:00:00]} d6 {[%emt 0:00:00]} 5. Be2 {[%emt 0:00:07]} c5 {[%emt 0:04:19]} 6. Nf3 {[%emt 0:07:10]} O-O {[%emt 0:00:54]} 7. O-O {[%emt 0:00:35]} cxd4 {[%emt 0:04:39]} 8. Nxd4 {[%emt 0:00:38]} Nc6 {[%emt 0:01:16]} 9. Be3 {[%emt 0:02:46]} Bd7 {[%emt 0:00:50]} 10. Rc1 {[%emt 0:06:53]} Nxd4 {[%emt 0:02:32]} 11. Bxd4 {[%emt 0:00:22]} Bc6 {[%emt 0:00:18]} 12. Qd3 {[%emt 0:14:29]} e6 {[%emt 0:15:25]} 13. Rfd1 {[%emt 0:05:09]} Qa5 {[%emt 0:02:20]} 14. Qf3 {[%emt 0:20:39]} e5 {[%emt 0:15:37]} 15. Be3 {[%emt 0:00:23]} Nxe4 {[%emt 0:02:43]} 16. Nd5 {[%emt 0:06:57]} f5 {[%emt 0:03:54]} 17. Ne7+ {[%emt 0:02:41]} Kh8 {[%emt 0:00:13]} 18. Qh3 {[%emt 0:01:21]} Rf6 {[%emt 0:04:31]} 19. f3 {[%emt 0:18:58]} Nc5 {[%emt 0:00:55]} 20. Bg5 {[%emt 0:01:51]} Re6 {[%emt 0:00:28]} 21. Rb1 {[%emt 0:02:59]} Qxa2 {[%emt 0:07:23]} 22. b4 {[%emt 0:02:56]} Qxe2 {[%emt 0:03:41]} 23. bxc5 {[%emt 0:00:06]} dxc5 {[%emt 0:02:01]} 24. Nxc6 {[%emt 0:02:55]} Rxc6 {[%emt 0:00:25]} 25. Rd7 {[%emt 0:00:38]} b6 {[%emt 0:02:19]} 26. Rbd1 {[%emt 0:00:23]} Rg8 {[%emt 0:07:41]} 27. Bh6 {[%emt 0:01:12]} a5 {[%emt 0:08:51]} 28. Bxg7+ {[%emt 0:00:26]} Rxg7 {[%emt 0:00:01]} 29. Rd8+ {[%emt 0:00:08]} Rg8 {[%emt 0:00:10]} 30. Qh4 {[%emt 0:00:08]} Qe3+ {[%emt 0:00:53]} 31. Kh1 {[%emt 0:00:07]} g5 {[%emt 0:04:11]} 32. Qh5 {[%emt 0:00:44]} Rcg6 {[%emt 0:00:22]} 33. Rxg8+ {[%emt 0:01:12]} Rxg8 {[%emt 0:00:34]} 34. Qh6 {[%emt 0:00:08]} Re8 {[%emt 0:01:39]} 35. Qf6+ {[%emt 0:00:14]} Kg8 {[%emt 0:00:08]} 36. Qxf5 {[%emt 0:00:50]} Qf4 {[%emt 0:00:19]} 37. Qd7 {[%emt 0:00:35]} Qf7 {[%emt 0:00:25]} 38. Qg4 {[%emt 0:00:33]} Qg7 {[%emt 0:02:29]} 39. Rd7 {[%emt 0:00:59]} Qf6 {[%emt 0:00:42]} 40. Qe4 {[%emt 0:01:05]} Re7 {[%emt 0:02:51]} 41. Rd8+ {[%emt 0:11:44]} Kg7 {[%emt 0:00:11]} 42. Qa8 {[%emt 0:09:33]} e4 {[%emt 0:02:24]} 43. Rg8+ {[%emt 0:00:46]} Kh6 {[%emt 0:00:31]} 44. h4 {[%emt 0:00:54]} gxh4 {[%emt 0:04:04]} 45. fxe4 {[%emt 0:02:14]} Rd7 {[%emt 0:06:46]} 46. Qb8 {[%emt 0:04:22]} Rd1+ {[%emt 0:02:00]} 47. Kh2 {[%emt 0:00:01]} Qd6+ {[%emt 0:00:52]} 48. Qxd6+ {[%emt 0:01:51]} Rxd6 {[%emt 0:00:02]} 49. Kh3 {[%emt 0:01:14]} Kh5 {[%emt 0:03:03]} 50. Rb8 {[%emt 0:02:25]} Kg5 {[%emt 0:01:16]} 51. Rg8+ {[%emt 0:00:27]} Rg6 {[%emt 0:01:18]} 52. Rf8 {[%emt 0:00:19]} Rf6 {[%emt 0:03:21]} 53. Rg8+ {[%emt 0:00:07]} Kh5 {[%emt 0:00:49]} 54. Rg4 {[%emt 0:00:08]} Rh6 {[%emt 0:03:37]} 55. e5 {[%emt 0:00:57]} a4 {[%emt 0:01:23]} 56. Re4 {[%emt 0:00:41]} Re6 {[%emt 0:00:22]} 57. Rxh4+ {[%emt 0:00:53]} Kg5 {[%emt 0:01:18]} 58. Rg4+ {[%emt 0:00:28]} Kf5 {[%emt 0:00:08]} 59. Rh4 {[%emt 0:00:21]} h6 {[%emt 0:00:10]} 60. Rh5+ {[%emt 0:00:16]} Ke4 {[%emt 0:00:40]} 61. Kg3 {[%emt 0:00:23]} a3 {[%emt 0:00:39]} 62. Rh1 {[%emt 0:00:33]} Kxe5 {[%emt 0:00:31]} 63. Re1+ {[%emt 0:00:27]} Kd6 {[%emt 0:00:43]} 64. Ra1 {[%emt 0:00:31]} Re4 {[%emt 0:01:44]} 65. Rxa3 {[%emt 0:00:22]} Rxc4 {[%emt 0:00:09]} 66. Rf3 {[%emt 0:00:31]} Re4 {[%emt 0:00:14]} 67. Rb3 {[%emt 0:00:43]} Kc6 {[%emt 0:00:06]} 68. Kf3 {[%emt 0:00:05]} Re6 {[%emt 0:00:09]} 69. Kf4 {[%emt 0:00:20]} b5 {[%emt 0:00:07]} 70. Kf5 {[%emt 0:00:05]} Rd6 {[%emt 0:00:08]} 71. Ke5 {[%emt 0:00:10]} Rd5+ {[%emt 0:00:38]} 72. Ke4 {[%emt 0:00:19]} c4 {[%emt 0:00:16]} 73. Rh3 {[%emt 0:00:13]} h5 {[%emt 0:00:16]} 74. Rg3 {[%emt 0:00:34]} b4 {[%emt 0:00:52]} 75. Rg8 {[%emt 0:00:10]} Rd2 {[%emt 0:01:14]} 76. Rg6+ {[%emt 0:02:50]} Kb5 {[%emt 0:01:14]} 77. Rg5+ {[%emt 0:00:05]} Ka4 {[%emt 0:00:11]} 78. Rxh5 {[%emt 0:00:03]} Rxg2 {[%emt 0:00:25]} 79. Kd4 {[%emt 0:00:27]} Rd2+ {[%emt 0:00:29]} 80. Kxc4 {[%emt 0:00:19]} Rc2+ {[%emt 0:00:34]} 81. Kd3 {[%emt 0:00:24]} Rc6 {[%emt 0:00:32]} 82. Kd2 {[%emt 0:01:15]} b3 {[%emt 0:00:12]} 83. Rh8 {[%emt 0:00:34]} Ka3 {[%emt 0:00:18]} 84. Kd1 {[%emt 0:00:28]} Kb2 {[%emt 0:01:51]} 85. Rh2+ {[%emt 0:00:28]} Kb1 {[%emt 0:01:47]} 86. Rh8 {[%emt 0:00:04]} Rd6+ {[%emt 0:00:12]} 87. Ke2 {[%emt 0:00:21]} b2 {[%emt 0:01:46]} 88. Rb8 {[%emt 0:00:31]} Rc6 {[%emt 0:00:32]} 89. Kd2 {[%emt 0:00:21]} Rc1 {[%emt 0:00:25]} 90. Rb7 {[%emt 0:00:28]} Rc6 {[%emt 0:00:18]} 91. Rb8 {[%emt 0:00:04]} Rd6+ {[%emt 0:01:07]} 92. Ke2 {[%emt 0:01:38]} Rd4 {[%emt 0:00:47]} 93. Rc8 {[%emt 0:00:56]} Ka2 {[%emt 0:00:22]} 94. Ke3 {[%emt 0:00:40]} Rb4 {[%emt 0:00:24]} 95. Rc2 {[%emt 0:00:30]} Ka1 {[%emt 0:00:26]} 96. Kd2 {[%emt 0:00:33]} b1=Q {[%emt 0:00:23]} 0-1

[Event "Bremer Silvester Open 2019"]
[Site "Bremen"]
[Date "2019.12.28"]
[Round "3.1"]
[White "Grishchenko, Sergey"]
[Black "Wielebinski, Paul Martin"]
[Result "1-0"]
[ECO "E73"]
[WhiteElo "2404"]
[BlackElo "2069"]
[Annotator "NA"]
[PlyCount "98"]
[EventDate "2019.12.27"]
[EventType "swiss"]
[EventCountry "GER"]
[SourceTitle "playchess.com"]
[Source "ChessBase"]
[SourceQuality "1"]
[TimeControl "40/5400+30:1800+30"]

1. d4 {[%emt 0:00:00]} Nf6 {[%emt 0:00:00]} 2. c4 {[%emt 0:00:00]} g6 {[%emt 0:00:00]} 3. Nc3 {[%emt 0:00:00]} Bg7 {[%emt 0:00:00]} 4. e4 {[%emt 0:00:02]} d6 {[%emt 0:00:03]} 5. Be2 {[%emt 0:00:17]} O-O {[%emt 0:00:14]} 6. Be3 {[%emt 0:00:06]} e5 {[%emt 0:00:37]} 7. d5 {[%emt 0:00:10]} Na6 {[%emt 0:00:11]} 8. g4 {[%emt 0:00:10] E73: King's Indian: Averbakh Variation without 6...c5} (8. h4 Nc5 9. Qc2 c6 10. h5 cxd5 11. cxd5 Qa5 12. h6 Bh8 13. f3 Bd7 14. Rb1 Na4 15. Qd2 Nxc3 16. bxc3 {½-½ (49) Eljanov,P (2676)-Demchenko,A (2679) Germany 2019}) 8... Nc5 {[%emt 0:00:24]} 9. Bf3 {[%emt 0:00:04]} a5 {[%emt 0:00:33]} 10. h4 {[%emt 0:00:07]} c6 {[%emt 0:05:57]} 11. g5 {[%emt 0:02:29]} Nh5 {[%emt 0:03:59]} 12. Bxc5 {[%emt 0:01:30]} dxc5 {[%emt 0:00:14]} 13. Bxh5 {[%emt 0:00:03]} gxh5 {[%emt 0:00:21]} 14. Qxh5 {[%emt 0:00:05]} f5 {[%emt 0:04:08]} 15. O-O-O {[%emt 0:13:45]} Qb6 {[%emt 0:04:53] [#]} 16. Nf3 $146 {[%emt 0:45:09]} ({Predecessor:} 16. Qe2) 16... fxe4 {[%emt 0:11:09]} 17. Nxe5 $2 {[%emt 0:16:02]} (17. Nd2 $18) 17... Bxe5 {[%emt 0:02:24]} (17... Bf5 $5 {[%cal Rg7e5]} 18. g6 Bxg6 19. Nxg6 Rxf2 20. Ne7+ Kh8 21. Ng6+ {[#]} Kg8 $1 {[%mdl 512]} 22. Ne7+ Kh8 23. Ng6+ Kg8 $1 $11 {[%mdl 512]}) 18. g6 {[%emt 0:04:16]} Bf4+ {[%emt 0:00:07] [#]} 19. Kb1 $1 {[%emt 0:00:06]} h6 {[%emt 0:00:16]} 20. g7 $1 {[%emt 0:00:19]} Rf7 $1 {[%emt 0:00:45]} 21. Ne2 $1 {[%emt 0:01:51]} cxd5 {[%emt 0:13:52]} 22. Nxf4 {[%emt 0:00:52]} Rxf4 $2 {[%emt 0:09:15]} (22... Bf5 $1 $14) 23. Qe8+ {[%emt 0:00:29]} Kxg7 {[%emt 0:00:49] [#]} 24. Qe7+ $1 {[%emt 0:03:05]} ({Stronger than} 24. Rdg1+ Bg4 $11) 24... Kh8 {[%emt 0:01:14]} 25. Rxd5 {[%emt 0:01:46]} Be6 {[%emt 0:08:07] [#]} 26. Rd6 $1 {[%emt 0:01:26] Double Attack} Qxd6 {[%emt 0:00:13]} 27. Qxd6 {[%emt 0:00:08]} Rf6 {[%emt 0:00:18]} 28. Rg1 {[%emt 0:04:41]} Raf8 {[%emt 0:00:21]} 29. Qxc5 {[%emt 0:00:16]} Bf5 {[%emt 0:01:23]} 30. Kc1 {[%emt 0:00:45]} Bh7 {[%emt 0:00:27]} 31. Qc7 {[%emt 0:00:34]} R8f7 {[%emt 0:01:02]} 32. Qb8+ {[%emt 0:00:09]} Rf8 {[%emt 0:00:08]} 33. Qe5 $18 {[%emt 0:02:58]} b6 {[%emt 0:00:13]} 34. Rd1 {[%emt 0:01:30]} Kg8 {[%emt 0:01:13]} 35. Rd8 {[%emt 0:00:36]} Rf5 {[%emt 0:03:56]} 36. Qe6+ {[%emt 0:00:18]} Kg7 {[%emt 0:00:29]} 37. Rxf8 {[%emt 0:00:34]} Rxf8 {[%emt 0:00:18]} 38. Qxb6 {[%emt 0:00:05]} Bf5 {[%emt 0:04:01]} 39. Qxa5 {[%emt 0:00:16]} Kg6 {[%emt 0:00:13]} 40. Qe5 {[%emt 0:00:37]} Rf6 {[%emt 0:00:21]} 41. c5 {[%emt 0:30:31]} Re6 {[%emt 0:30:16]} 42. Qf4 {[%emt 0:00:27]} Kf6 {[%emt 0:00:31]} 43. b4 {[%emt 0:00:21]} Re8 {[%emt 0:00:37]} 44. Qxh6+ {[%emt 0:00:06]} Kf7 {[%emt 0:00:34]} 45. Qf4 {[%emt 0:00:04]} Kf6 {[%emt 0:00:13]} 46. Kb2 {[%emt 0:00:21]} e3 {[%emt 0:00:30]} 47. fxe3 {[%emt 0:00:33]} Re4 {[%emt 0:00:05]} 48. Qh6+ {[%emt 0:00:15]} Kf7 {[%emt 0:00:12]} 49. Kc3 {[%emt 0:00:10]} Rf4 {[%emt 0:27:24]} 1-0

[Event "Bremer Silvester Open 2019"]
[Site "Bremen"]
[Date "2019.12.28"]
[Round "3.2"]
[White "Benecke, Torsten"]
[Black "Reuker, Jari"]
[Result "0-1"]
[ECO "C37"]
[WhiteElo "2010"]
[BlackElo "2383"]
[Annotator "NA"]
[PlyCount "42"]
[EventDate "2019.12.27"]
[EventType "swiss"]
[EventCountry "GER"]
[SourceTitle "playchess.com"]
[Source "ChessBase"]
[SourceQuality "1"]
[TimeControl "40/5400+30:1800+30"]

{[%evp 22,40,-178,-325,-397,32767,-550,32767,32767,-576,-630,32767,-659,-683,-623,-710,-701,-727,-770,-863,-881]} 1. e4 {[%emt 0:00:00]} e5 {[%emt 0:00:00]} 2. f4 {[%emt 0:00:00]} exf4 {[%emt 0:00:00]} 3. Nf3 {[%emt 0:00:04]} g5 {[%emt 0:00:01]} 4. Bc4 {[%emt 0:00:08]} g4 {[%emt 0:00:09]} 5. O-O {[%emt 0:04:12]} gxf3 {[%emt 0:00:46]} 6. Qxf3 {[%emt 0:00:07]} Qf6 {[%emt 0:00:06]} 7. e5 {[%emt 0:00:38]} Qxe5 {[%emt 0:00:17]} 8. Bxf7+ {[%emt 0:00:11]} Kxf7 {[%emt 0:00:05]} 9. d4 {[%emt 0:00:06]} Qf5 {[%emt 0:00:06] C37: King's Gambit Accepted: Muzio Gambit} 10. Bxf4 {[%emt 0:03:05]} Nf6 {[%emt 0:00:23]} 11. Nc3 {[%emt 0:02:01]} d6 {[%emt 0:25:33]} 12. Rae1 {[%emt 0:05:23]} (12. Qe3 $142 Qe6 13. Qd3) 12... Rg8 $146 {[%emt 0:08:46]} ({Predecessor:} 12... Bg7 13. Qe2 Re8 14. Be5 Qd7 15. Qc4+ Re6 16. Bxf6 Bxf6 17. Nd5 Rxe1 18. Rxe1 {1-0 (30) Bujdak,P (1668)-O'Brien,G (1348) LSS email 2012}) 13. Nd1 {[%emt 0:09:08]} Nc6 {[%emt 0:17:49]} 14. c3 {[%emt 0:15:31]} Qg4 {[%emt 0:01:59]} 15. Qf2 {[%emt 0:00:24]} Qg6 {[%emt 0:01:42]} 16. Ne3 {[%emt 0:15:14]} Bd7 {[%emt 0:05:35]} 17. h4 {[%emt 0:08:10]} Be7 {[%emt 0:11:21]} 18. Bg5 {[%emt 0:00:40]} Kg7 {[%emt 0:03:09]} 19. Bxf6+ {[%emt 0:02:30]} Qxf6 {[%emt 0:02:22]} 20. Qe2 {[%emt 0:03:14]} Qxh4 $19 {[%emt 0:02:01]} 21. Rf5 {[%emt 0:02:58]} Kh8 {[%emt 0:02:37]} 0-1

[Event "Bremer Silvester Open 2019"]
[Site "Bremen"]
[Date "2019.12.28"]
[Round "3.3"]
[White "Wachinger, Nikolas"]
[Black "Celik, Abdullah"]
[Result "1/2-1/2"]
[ECO "B51"]
[WhiteElo "2234"]
[BlackElo "2048"]
[Annotator "NA"]
[PlyCount "52"]
[EventDate "2019.12.27"]
[EventType "swiss"]
[EventCountry "GER"]
[SourceTitle "playchess.com"]
[Source "ChessBase"]
[SourceQuality "1"]
[TimeControl "40/5400+30:1800+30"]

{[%evp 17,49,29,32767,32767,74,-5,0,-60,-48,-31,-21,-40,32767,-63,-62,-31,-7,0,0,0,0,0,0,0,0,0,0,0,0,0,0,0,0,0]} 1. e4 {[%emt 0:00:00]} c5 {[%emt 0:00:00]} 2. Nf3 {[%emt 0:00:00]} d6 {[%emt 0:00:00]} 3. Bb5+ {[%emt 0:00:06]} Nc6 {[%emt 0:00:00]} 4. O-O {[%emt 0:00:22]} Bd7 {[%emt 0:00:00]} 5. Re1 {[%emt 0:00:28]} Nf6 {[%emt 0:00:50]} 6. c3 {[%emt 0:00:08]} a6 {[%emt 0:00:03] B51: Sicilian: Moscow Variation (3 Bb5+) without 3...Bd7} 7. Bc4 {[%emt 0:00:08]} (7. Bf1 Bg4 8. d4 cxd4 9. cxd4 d5 10. exd5 Nxd5 11. Nc3 e6 12. h3 Bh5 13. g4 Bg6 14. Nxd5 Qxd5 15. Bg2 O-O-O 16. Ne5 Qxd4 17. Qf3 Rd5 18. Nxf7 {1-0 (31) Giri,A (2779)-Mamedyarov,S (2774) Zagreb 2019}) 7... b5 {[%emt 0:00:57]} 8. Bf1 {[%emt 0:00:12]} Ne5 {[%emt 0:10:46]} 9. Nxe5 $146 {[%emt 0:15:17]} ({Predecessor:} 9. d4 Nxf3+ 10. Qxf3 e5 11. a4 Be7 12. Bg5 O-O 13. dxc5 dxc5 14. Na3 {½-½ (59) Hansen,M (2344)-Bailet,P (2492) Barcelona 2016}) 9... dxe5 {[%emt 0:00:10]} 10. a4 {[%emt 0:00:06]} e6 {[%emt 0:12:32]} 11. Na3 {[%emt 0:10:35]} Bc6 {[%emt 0:13:25]} 12. Qb3 {[%emt 0:33:49]} (12. d4 $11) 12... c4 {[%emt 0:12:54]} ({Of course not} 12... Bxe4 $6 13. axb5 Bd5 14. Nc4 $16) 13. Qc2 {[%emt 0:00:12]} Bc5 {[%emt 0:00:09]} 14. h3 $1 {[%emt 0:04:21]} Qb6 {[%emt 0:09:15]} 15. d3 {[%emt 0:00:25] [#]} cxd3 $1 {[%emt 0:03:21]} 16. Bxd3 {[%emt 0:00:14]} O-O {[%emt 0:00:23]} (16... bxa4 $15 17. Nc4 Qc7) 17. b4 {[%emt 0:02:00]} Be7 {[%emt 0:00:54]} 18. axb5 {[%emt 0:08:10]} axb5 {[%emt 0:00:12]} 19. Qe2 {[%emt 0:01:37]} Rfd8 {[%emt 0:02:56]} 20. Bg5 {[%emt 0:06:15]} Nxe4 {[%emt 0:05:59]} 21. Bxe7 {[%emt 0:01:45]} Rxd3 $1 {[%emt 0:00:06]} 22. Qxd3 {[%emt 0:07:37]} Qxf2+ {[%emt 0:00:04]} 23. Kh2 {[%emt 0:00:06]} Qf4+ {[%emt 0:04:06]} 24. Kg1 {[%emt 0:00:07]} Qf2+ $11 {[%emt 0:00:10]} 25. Kh2 {[%emt 0:00:06]} Qf4+ {[%emt 0:09:58]} 26. Kg1 {[%emt 0:00:08]} Qf2+ {[%emt 0:00:20]} 1/2-1/2

[Event "Bremer Silvester Open 2019"]
[Site "Bremen"]
[Date "2019.12.28"]
[Round "3.4"]
[White "Lorenzen, Bjoern"]
[Black "Hoerstmann, Martin"]
[Result "0-1"]
[ECO "A40"]
[WhiteElo "1946"]
[BlackElo "2208"]
[Annotator "NA"]
[PlyCount "68"]
[EventDate "2019.12.27"]
[EventType "swiss"]
[EventCountry "GER"]
[SourceTitle "playchess.com"]
[Source "ChessBase"]
[SourceQuality "1"]
[TimeControl "40/5400+30:1800+30"]

{[%evp 8,57,62,51,58,53,42,67,64,32767,0,-80,-99,32767,32767,-349,-377,-446,-489,-1755,-1066,-955,-1183,-948,-994,32767,-770,-665,-360,-316,-257,-257,-284,-272,-263,-282,-309,-277,-268,32767,-302,-339,-291,-277,-275,-269,-280,-282,-282,-298,-292,-356]} 1. d4 {[%emt 0:02:40]} g6 {[%emt 0:19:51]} 2. c4 {[%emt 0:01:22]} Bg7 {[%emt 0:00:04]} 3. Nc3 {[%emt 0:00:21]} c5 {[%emt 0:00:24]} 4. d5 {[%emt 0:00:29]} Bxc3+ {[%emt 0:00:21]} 5. bxc3 {[%emt 0:00:07]} f5 {[%emt 0:00:02]} 6. e4 {[%emt 0:09:40]} fxe4 {[%emt 0:00:17]} 7. f3 {[%emt 0:01:45]} e5 {[%emt 0:00:12] A40: Unusual replies to 1 d4} (7... Nf6 8. Bh6 Qa5 9. Qc2 d6 10. fxe4 Bd7 11. Nf3 Ba4 12. Qb2 Nbd7 13. Bd3 Ng4 14. Bf4 O-O 15. Bg3 {½-½ (84) Bartel,M (2638)-Harikrishna,P (2709) Germany 2013}) 8. dxe6 {[%emt 0:05:31]} Nc6 {[%emt 0:00:10]} 9. exd7+ {[%emt 0:08:09]} (9. Nh3 $11 {keeps the balance.}) 9... Bxd7 {[%emt 0:06:18]} 10. Qe2 $146 {[%emt 0:05:48]} ({Predecessor:} 10. fxe4 Qh4+ 11. g3 Qxe4+ 12. Qe2 Qxe2+ 13. Nxe2 O-O-O 14. Bg5 Re8 15. O-O-O {0-1 (41) Michalicka,M (2252)-Vokac,M (2458) Stare Mesto 2013}) 10... Qa5 {[%emt 0:04:29]} 11. Bd2 $2 {[%emt 0:03:39]} (11. Qxe4+ $17 Nge7 12. Qc2) 11... O-O-O {[%emt 0:06:12]} 12. fxe4 {[%emt 0:00:20]} Nf6 {[%emt 0:00:46]} 13. O-O-O {[%emt 0:12:29]} (13. Nf3 $142 Nxe4 14. Qxe4) 13... Nxe4 {[%emt 0:03:52]} 14. Be1 {[%emt 0:02:25]} Nxc3 {[%emt 0:04:55]} 15. Bxc3 {[%emt 0:00:34]} Qxc3+ {[%emt 0:00:07]} 16. Qc2 {[%emt 0:01:00]} Qa1+ {[%emt 0:26:01]} 17. Qb1 {[%emt 0:02:31]} Qxb1+ {[%emt 0:00:08]} 18. Kxb1 {[%emt 0:00:03]} Bg4 {[%emt 0:00:05]} 19. Rxd8+ {[%emt 0:02:14]} Rxd8 {[%emt 0:00:04]} ({Don't take} 19... Kxd8 20. Be2 $19) 20. Be2 {[%emt 0:00:42]} Bxe2 {[%emt 0:02:33]} 21. Nxe2 {[%emt 0:00:02]} Rd2 {[%emt 0:00:05]} 22. Nf4 {[%emt 0:05:10]} Ne5 {[%emt 0:05:39]} 23. Re1 {[%emt 0:08:50]} Nxc4 {[%emt 0:00:16]} 24. Re7 {[%emt 0:00:14]} Rd7 {[%emt 0:01:48]} 25. Re2 {[%emt 0:02:32]} b6 {[%emt 0:00:42]} 26. Kc2 {[%emt 0:00:26]} Kb7 {[%emt 0:01:05]} 27. g3 {[%emt 0:00:53]} Na3+ {[%emt 0:04:12]} 28. Kb3 {[%emt 0:02:54]} Nb5 {[%emt 0:00:07]} 29. Rf2 $19 {[%emt 0:00:50]} Rf7 {[%emt 0:03:03]} 30. h4 {[%emt 0:00:38]} Nd4+ {[%emt 0:00:39]} 31. Kc4 {[%emt 0:00:52]} Kc6 {[%emt 0:00:30]} 32. Rb2 {[%emt 0:00:40]} Nf5 {[%emt 0:01:22]} 33. Nd3 {[%emt 0:00:40]} Nd6+ {[%emt 0:01:08]} 34. Kc3 {[%emt 0:00:16]} Rf3 {[%emt 0:09:33] Kd4} 0-1